fUST/lending_fUST_20240525
["ID","MTS","AMOUNT","RATE_DAILY","PERIOD"]
[327869761,1716567043276,-500.0,0.00025205,4]
[327869763,1716567043286,-500.0,0.00025205,4]
[327869765,1716567043296,-500.0,0.00025205,4]
[327869767,1716567043305,-500.0,0.00025205,4]
[327869769,1716567043315,-500.0,0.00025205,4]
[327869771,1716567043324,-500.0,0.00025205,4]
[327869773,1716567043333,-500.0,0.00025205,4]
[327869775,1716567043343,-553.94,0.00025205,4]
[327869777,1716567043353,-500.0,0.00025205,4]
[327869779,1716567043362,-500.0,0.00025205,4]
[327869782,1716567043375,-500.0,0.00025205,4]
[327869785,1716567043384,-500.0,0.00025205,4]
[327869786,1716567043393,-509.57,0.00025205,4]
[327869787,1716567043402,-198.21,0.00025205,4]
[327869788,1716567043413,-178.72,0.00025205,4]
[327869789,1716567043423,-823.58,0.00025205,4]
[327869790,1716567043432,-500.0,0.00025205,4]
[327869791,1716567043442,-500.0,0.00025205,4]
[327869792,1716567043454,-1088.57,0.00025205,4]
[327869793,1716567043464,-500.0,0.00025205,4]
[327869794,1716567043474,-500.0,0.00025205,4]
[327869795,1716567043483,-500.0,0.00025205,4]
[327869796,1716567043493,-500.0,0.00025205,4]
[327869797,1716567043503,-500.0,0.00025205,4]
[327869798,1716567043512,-191.51,0.00025205,4]
[327869799,1716567043522,-2091.69,0.00025205,4]
[327869800,1716567043535,-500.0,0.00025205,4]
[327869801,1716567043546,-829.88,0.00025205,4]
[327869802,1716567043555,-752.81,0.00025205,4]
[327869803,1716567043565,-749.76,0.00025205,4]
[327869804,1716567043574,-5642.55,0.00025205,4]
[327869805,1716567043584,-679.89,0.00025205,4]
[327869806,1716567043593,-500.0,0.00025205,4]
[327869807,1716567043603,-500.0,0.00025205,4]
[327869808,1716567043612,-2044.84,0.00025205,4]
[327869809,1716567043626,-500.0,0.00025205,4]
[327869810,1716567043635,-500.0,0.00025205,4]
[327869811,1716567043645,-845.71,0.00025205,4]
[327869812,1716567043654,-745.53,0.00025205,4]
[327869813,1716567043663,-611.91,0.00025205,4]
[327869814,1716567043672,-1215.4,0.00025205,4]
[327869815,1716567043681,-500.0,0.00025205,4]
[327869816,1716567043690,-500.0,0.00025205,4]
[327869817,1716567043699,-6209.79,0.00025205,4]
[327869818,1716567043708,-243.4891551,0.00025205,4]
[327869819,1716567043719,-500.0,0.00025205,4]
[327869820,1716567043729,-500.0,0.00025205,4]
[327869821,1716567043738,-500.0,0.00025205,4]
[327869822,1716567043748,-2155.06,0.00025205,4]
[327869823,1716567043757,-7085.49,0.00025205,4]
[327869824,1716567043768,-500.0,0.00025205,4]
[327869825,1716567043777,-981.33,0.00025205,4]
[327869826,1716567043787,-500.0,0.00025205,4]
[327869827,1716567043797,-500.0,0.00025205,4]
[327869828,1716567043807,-500.0,0.00025205,4]
[327869830,1716567043817,-500.0,0.00025205,4]
[327869831,1716567043826,-500.0,0.00025205,4]
[327869833,1716567043836,-185.97658132,0.00025205,4]
[327869835,1716567043846,-774.86,0.00025205,4]
[327869837,1716567043857,-500.0,0.00025205,4]
[327869839,1716567043867,-500.0,0.00025205,4]
[327869840,1716567043879,-500.0,0.00025205,4]
[327869842,1716567043889,-500.0,0.00025205,4]
[327869844,1716567043899,-539.0,0.00025205,4]
[327869845,1716567043908,-500.0,0.00025205,4]
[327869847,1716567043917,-630.98,0.00025205,4]
[327869849,1716567043927,-500.0,0.00025205,4]
[327869851,1716567043936,-500.0,0.00025205,4]
[327869853,1716567043946,-4150.53,0.00025205,4]
[327869855,1716567043955,-500.0,0.00025205,4]
[327869856,1716567043964,-1070.15,0.00025478,3]
[327869858,1716567043974,-500.0,0.00025479,5]
[327869860,1716567043984,-2576.19,0.00025479,5]
[327869862,1716567043993,-500.0,0.00025479,5]
[327869864,1716567044003,-500.0,0.00025479,5]
[327869866,1716567044012,-500.0,0.00025479,5]
[327869867,1716567044021,-500.0,0.00025479,5]
[327869869,1716567044031,-500.0,0.00025479,5]
[327869871,1716567044041,-500.0,0.00025479,5]
[327869873,1716567044051,-500.0,0.00025479,5]
[327869875,1716567044060,-500.0,0.00025479,5]
[327869877,1716567044070,-592.39,0.00025479,5]
[327869879,1716567044079,-500.0,0.00025479,5]
[327869881,1716567044088,-500.0,0.00025479,5]
[327869882,1716567044098,-500.0,0.00025479,5]
[327869884,1716567044107,-817.63,0.00025479,5]
[327869886,1716567044116,-541.43,0.00025479,5]
[327869888,1716567044128,-500.0,0.00025479,5]
[327869890,1716567044138,-500.0,0.00025479,5]
[327869892,1716567044147,-501.54,0.00025479,5]
[327869894,1716567044157,-764.96,0.00025479,5]
[327869895,1716567044166,-500.0,0.00025479,5]
[327869897,1716567044176,-571.51,0.00025479,5]
[327869899,1716567044186,-959.3,0.00025479,5]
[327869901,1716567044196,-500.0,0.00025479,5]
[327869903,1716567044205,-500.0,0.00025479,5]
[327869905,1716567044215,-760.97,0.00025479,5]
[327869907,1716567044224,-500.0,0.00025479,5]
[327869920,1716567044362,-500.0,0.00025479,5]
[327869922,1716567044374,-500.0,0.00025479,5]
[327869924,1716567044384,-500.0,0.00025479,5]
[327869925,1716567044394,-500.0,0.00025479,5]
[327869927,1716567044404,-581.95,0.00025479,5]
[327869929,1716567044414,-500.0,0.00025479,5]
[327869931,1716567044424,-500.0,0.00025479,5]
[327869933,1716567044434,-500.0,0.00025479,5]
[327869935,1716567044444,-863.24,0.00025479,5]
[327869937,1716567044459,-500.0,0.00025479,5]
[327869939,1716567044468,-184.14171532,0.00025479,5]
[327869940,1716567044478,-500.0,0.00025479,5]
[327869942,1716567044488,-500.0,0.00025479,5]
[327869944,1716567044498,-223.83359076,0.00025479,5]
[327869946,1716567044507,-500.0,0.00025479,5]
[327869948,1716567044516,-553.94,0.00025479,5]
[327869949,1716567044527,-500.0,0.00025479,5]
[327869951,1716567044537,-500.0,0.00025479,5]
[327869953,1716567044548,-500.0,0.00025479,5]
[327869955,1716567044557,-500.0,0.00025479,5]
[327869957,1716567044567,-509.57,0.00025479,5]
[327869959,1716567044577,-823.58,0.00025479,5]
[327869961,1716567044587,-500.0,0.00025479,5]
[327869963,1716567044597,-500.0,0.00025479,5]
[327869965,1716567044607,-1088.57,0.00025479,5]
[327869967,1716567044617,-187.90474041,0.00025479,5]
[327869969,1716567044628,-500.0,0.00025479,5]
[327869970,1716567044637,-500.0,0.00025479,5]
[327869972,1716567044646,-500.0,0.00025479,5]
[327869974,1716567044656,-500.0,0.00025479,5]
[327869976,1716567044666,-2091.69,0.00025479,5]
[327869978,1716567044676,-500.0,0.00025479,5]
[327869980,1716567044686,-829.88,0.00025479,5]
[327869982,1716567044696,-752.81,0.00025479,5]
[327869984,1716567044706,-749.76,0.00025479,5]
[327869986,1716567044716,-5642.55,0.00025479,5]
[327869988,1716567044725,-679.89,0.00025479,5]
[327869989,1716567044735,-500.0,0.00025479,5]
[327869991,1716567044745,-500.0,0.00025479,5]
[327869993,1716567044755,-2044.84,0.00025479,5]
[327869995,1716567044765,-500.0,0.00025479,5]
[327869997,1716567044775,-500.0,0.00025479,5]
[327869999,1716567044785,-845.71,0.00025479,5]
[327870001,1716567044795,-745.53,0.00025479,5]
[327870003,1716567044805,-611.91,0.00025479,5]
[327870005,1716567044814,-1215.4,0.00025479,5]
[327870007,1716567044824,-500.0,0.00025479,5]
[327870008,1716567044833,-500.0,0.00025479,5]
[327870010,1716567044843,-6209.79,0.00025479,5]
[327870012,1716567044853,-500.0,0.00025479,5]
[327870014,1716567044862,-500.0,0.00025479,5]
[327870016,1716567044874,-500.0,0.00025479,5]
[327870018,1716567044883,-2155.06,0.00025479,5]
[327870020,1716567044893,-7085.49,0.00025479,5]
[327870021,1716567044902,-500.0,0.00025479,5]
[327870023,1716567044913,-981.33,0.00025479,5]
[327870025,1716567044922,-500.0,0.00025479,5]
[327870027,1716567044931,-500.0,0.00025479,5]
[327870029,1716567044941,-500.0,0.00025479,5]
[327870031,1716567044950,-500.0,0.00025479,5]
[327870033,1716567044960,-500.0,0.00025479,5]
[327870034,1716567044969,-774.86,0.00025479,5]
[327870036,1716567044979,-500.0,0.00025479,5]
[327870038,1716567044989,-500.0,0.00025479,5]
[327870040,1716567044999,-500.0,0.00025479,5]
[327870042,1716567045009,-500.0,0.00025479,5]
[327870044,1716567045020,-539.0,0.00025479,5]
[327870046,1716567045030,-500.0,0.00025479,5]
[327870048,1716567045040,-630.98,0.00025479,5]
[327870050,1716567045050,-500.0,0.00025479,5]
[327870052,1716567045060,-363.21,0.00025479,5]
[327870053,1716567045069,-4150.53,0.00025479,5]
[327870055,1716567045080,-500.0,0.00025479,5]
[327870057,1716567045091,-150.81901718,0.0002551,2]
[327870059,1716567045100,-151.0,0.0002559,5]
[327870061,1716567045109,-1070.15,0.00025752,3]
[327870063,1716567045120,-2576.19,0.00025753,6]
[327870065,1716567045130,-500.0,0.00025753,6]
[327870067,1716567045138,-500.0,0.00025753,6]
[327870068,1716567045147,-500.0,0.00025753,6]
[327870070,1716567045157,-500.0,0.00025753,6]
[327870072,1716567045166,-411.41879607,0.00025753,6]
[327870074,1716567045175,-500.0,0.00025753,6]
[327870076,1716567045185,-500.0,0.00025753,6]
[327870078,1716567045195,-500.0,0.00025753,6]
[327870080,1716567045206,-592.39,0.00025753,6]
[327870082,1716567045215,-500.0,0.00025753,6]
[327870083,1716567045225,-500.0,0.00025753,6]
[327870085,1716567045234,-817.63,0.00025753,6]
[327870087,1716567045244,-541.43,0.00025753,6]
[327870089,1716567045254,-500.0,0.00025753,6]
[327870091,1716567045263,-500.0,0.00025753,6]
[327870093,1716567045272,-501.54,0.00025753,6]
[327870095,1716567045282,-764.96,0.00025753,6]
[327870096,1716567045292,-500.0,0.00025753,6]
[327870098,1716567045302,-571.51,0.00025753,6]
[327870100,1716567045312,-959.3,0.00025753,6]
[327870102,1716567045322,-500.0,0.00025753,6]
[327870104,1716567045332,-760.97,0.00025753,6]
[327870106,1716567045341,-500.0,0.00025753,6]
[327870108,1716567045351,-500.0,0.00025753,6]
[327870110,1716567045361,-500.0,0.00025753,6]
[327870111,1716567045371,-500.0,0.00025753,6]
[327870113,1716567045381,-581.95,0.00025753,6]
[327870115,1716567045390,-500.0,0.00025753,6]
[327870117,1716567045400,-500.0,0.00025753,6]
[327870119,1716567045410,-863.24,0.00025753,6]
[327870121,1716567045419,-500.0,0.00025753,6]
[327870122,1716567045429,-595.96641044,0.00025753,6]
[327870124,1716567045438,-500.0,0.00025753,6]
[327870126,1716567045452,-500.0,0.00025753,6]
[327870128,1716567045462,-553.94,0.00025753,6]
[327870130,1716567045471,-500.0,0.00025753,6]
[327870132,1716567045481,-500.0,0.00025753,6]
[327870133,1716567045491,-500.0,0.00025753,6]
[327870135,1716567045500,-509.57,0.00025753,6]
[327870137,1716567045510,-823.58,0.00025753,6]
[327870139,1716567045519,-500.0,0.00025753,6]
[327870141,1716567045528,-500.0,0.00025753,6]
[327870143,1716567045541,-1088.57,0.00025753,6]
[327870145,1716567045549,-500.0,0.00025753,6]
[327870147,1716567045559,-500.0,0.00025753,6]
[327870149,1716567045568,-500.0,0.00025753,6]
[327870151,1716567045578,-2091.69,0.00025753,6]
[327870153,1716567045587,-500.0,0.00025753,6]
[327870155,1716567045596,-829.88,0.00025753,6]
[327870157,1716567045605,-752.81,0.00025753,6]
[327870158,1716567045614,-749.76,0.00025753,6]
[327870159,1716567045624,-5642.55,0.00025753,6]
[327870160,1716567045633,-679.89,0.00025753,6]
[327870161,1716567045642,-500.0,0.00025753,6]
[327870162,1716567045652,-500.0,0.00025753,6]
[327870163,1716567045661,-2044.84,0.00025753,6]
[327870164,1716567045670,-500.0,0.00025753,6]
[327870165,1716567045679,-500.0,0.00025753,6]
[327870166,1716567045688,-845.71,0.00025753,6]
[327870167,1716567045697,-745.53,0.00025753,6]
[327870168,1716567045706,-611.91,0.00025753,6]
[327870169,1716567045715,-1215.4,0.00025753,6]
[327870170,1716567045724,-500.0,0.00025753,6]
[327870171,1716567045733,-278.38048686,0.00025753,6]
[327870172,1716567045743,-6209.79,0.00025753,6]
[327870173,1716567045752,-500.0,0.00025753,6]
[327870174,1716567045761,-467.56196356,0.00025753,6]
[327870175,1716567045770,-500.0,0.00025753,6]
[327870176,1716567045779,-2155.06,0.00025753,6]
[327870177,1716567045790,-7085.49,0.00025753,6]
[327870178,1716567045799,-500.0,0.00025753,6]
[327870179,1716567045809,-981.33,0.00025753,6]
[327870181,1716567045817,-500.0,0.00025753,6]
[327870183,1716567045826,-500.0,0.00025753,6]
[327870185,1716567045836,-500.0,0.00025753,6]
[327870187,1716567045845,-500.0,0.00025753,6]
[327870189,1716567045854,-500.0,0.00025753,6]
[327870191,1716567045864,-774.86,0.00025753,6]
[327870193,1716567045874,-500.0,0.00025753,6]
[327870195,1716567045884,-500.0,0.00025753,6]
[327870196,1716567045893,-500.0,0.00025753,6]
[327870197,1716567045901,-500.0,0.00025753,6]
[327870198,1716567045910,-539.0,0.00025753,6]
[327870199,1716567045920,-500.0,0.00025753,6]
[327870200,1716567045930,-630.98,0.00025753,6]
[327870201,1716567045939,-500.0,0.00025753,6]
[327870202,1716567045948,-4150.53,0.00025753,6]
[327870203,1716567045958,-500.0,0.00025753,6]
[327870204,1716567045968,-1070.15,0.00026026,3]
[327870205,1716567045978,-2576.19,0.00026027,7]
[327870206,1716567045988,-500.0,0.00026027,7]
[327870208,1716567045998,-500.0,0.00026027,7]
[327870210,1716567046008,-500.0,0.00026027,7]
[327870212,1716567046017,-500.0,0.00026027,7]
[327870213,1716567046027,-500.0,0.00026027,7]
[327870215,1716567046037,-500.0,0.00026027,7]
[327870217,1716567046046,-592.39,0.00026027,7]
[327870219,1716567046056,-500.0,0.00026027,7]
[327870221,1716567046066,-500.0,0.00026027,7]
[327870223,1716567046075,-817.63,0.00026027,7]
[327870224,1716567046085,-541.43,0.00026027,7]
[327870225,1716567046094,-500.0,0.00026027,7]
[327870226,1716567046103,-500.0,0.00026027,7]
[327870227,1716567046112,-501.54,0.00026027,7]
[327870228,1716567046122,-764.96,0.00026027,7]
[327870229,1716567046131,-500.0,0.00026027,7]
[327870230,1716567046141,-571.51,0.00026027,7]
[327870231,1716567046150,-959.3,0.00026027,7]
[327870232,1716567046160,-500.0,0.00026027,7]
[327870233,1716567046169,-760.97,0.00026027,7]
[327870235,1716567046179,-500.0,0.00026027,7]
[327870236,1716567046188,-500.0,0.00026027,7]
[327870238,1716567046197,-500.0,0.00026027,7]
[327870239,1716567046206,-500.0,0.00026027,7]
[327870240,1716567046215,-581.95,0.00026027,7]
[327870241,1716567046225,-500.0,0.00026027,7]
[327870242,1716567046234,-500.0,0.00026027,7]
[327870243,1716567046243,-863.24,0.00026027,7]
[327870244,1716567046253,-500.0,0.00026027,7]
[327870245,1716567046262,-500.0,0.00026027,7]
[327870246,1716567046271,-500.0,0.00026027,7]
[327870247,1716567046280,-553.94,0.00026027,7]
[327870248,1716567046289,-429.55,0.00026027,7]
[327870249,1716567046298,-500.0,0.00026027,7]
[327870250,1716567046307,-500.0,0.00026027,7]
[327870251,1716567046317,-509.57,0.00026027,7]
[327870252,1716567046326,-823.58,0.00026027,7]
[327870253,1716567046335,-500.0,0.00026027,7]
[327870254,1716567046344,-500.0,0.00026027,7]
[327870255,1716567046353,-1088.57,0.00026027,7]
[327870256,1716567046363,-500.0,0.00026027,7]
[327870257,1716567046372,-500.0,0.00026027,7]
[327870258,1716567046383,-500.0,0.00026027,7]
[327870259,1716567046392,-2091.69,0.00026027,7]
[327870260,1716567046401,-500.0,0.00026027,7]
[327870261,1716567046410,-829.88,0.00026027,7]
[327870262,1716567046420,-752.81,0.00026027,7]
[327870263,1716567046430,-749.76,0.00026027,7]
[327870264,1716567046439,-5642.55,0.00026027,7]
[327870265,1716567046450,-679.89,0.00026027,7]
[327870266,1716567046463,-500.0,0.00026027,7]
[327870267,1716567046472,-500.0,0.00026027,7]
[327870268,1716567046482,-2044.84,0.00026027,7]
[327870269,1716567046492,-500.0,0.00026027,7]
[327870270,1716567046502,-500.0,0.00026027,7]
[327870271,1716567046512,-845.71,0.00026027,7]
[327870272,1716567046522,-745.53,0.00026027,7]
[327870273,1716567046533,-611.91,0.00026027,7]
[327870274,1716567046543,-1215.4,0.00026027,7]
[327870275,1716567046552,-500.0,0.00026027,7]
[327870276,1716567046561,-6209.79,0.00026027,7]
[327870277,1716567046570,-500.0,0.00026027,7]
[327870278,1716567046579,-500.0,0.00026027,7]
[327870279,1716567046588,-2155.06,0.00026027,7]
[327870280,1716567046598,-7085.49,0.00026027,7]
[327870281,1716567046607,-500.0,0.00026027,7]
[327870282,1716567046616,-981.33,0.00026027,7]
[327870283,1716567046626,-500.0,0.00026027,7]
[327870284,1716567046635,-500.0,0.00026027,7]
[327870285,1716567046644,-500.0,0.00026027,7]
[327870286,1716567046654,-500.0,0.00026027,7]
[327870287,1716567046664,-774.86,0.00026027,7]
[327870288,1716567046673,-500.0,0.00026027,7]
[327870289,1716567046682,-500.0,0.00026027,7]
[327870290,1716567046692,-500.0,0.00026027,7]
[327870291,1716567046703,-500.0,0.00026027,7]
[327870292,1716567046713,-539.0,0.00026027,7]
[327870293,1716567046723,-500.0,0.00026027,7]
[327870294,1716567046732,-630.98,0.00026027,7]
[327870295,1716567046742,-500.0,0.00026027,7]
[327870296,1716567046780,-4150.53,0.00026027,7]
[327870297,1716567046789,-500.0,0.00026027,7]
[327870298,1716567046799,-151.0,0.00026126,5]
[327870299,1716567046808,-210.718376,0.00026168,2]
[327870300,1716567046817,-1070.15,0.000263,3]
[327870301,1716567046826,-2576.19,0.00026301,8]
[327870302,1716567046835,-500.0,0.00026301,8]
[327870303,1716567046844,-500.0,0.00026301,8]
[327870304,1716567046854,-500.0,0.00026301,8]
[327870305,1716567046863,-500.0,0.00026301,8]
[327870306,1716567046874,-500.0,0.00026301,8]
[327870307,1716567046884,-500.0,0.00026301,8]
[327870308,1716567046894,-592.39,0.00026301,8]
[327870309,1716567046903,-500.0,0.00026301,8]
[327870310,1716567046912,-500.0,0.00026301,8]
[327870311,1716567046921,-817.63,0.00026301,8]
[327870312,1716567046931,-541.43,0.00026301,8]
[327870313,1716567046941,-500.0,0.00026301,8]
[327870314,1716567046950,-500.0,0.00026301,8]
[327870315,1716567046959,-501.54,0.00026301,8]
[327870316,1716567046968,-764.96,0.00026301,8]
[327870317,1716567046978,-500.0,0.00026301,8]
[327870318,1716567046987,-571.51,0.00026301,8]
[327870319,1716567046996,-959.3,0.00026301,8]
[327870320,1716567047006,-500.0,0.00026301,8]
[327870321,1716567047015,-760.97,0.00026301,8]
[327870322,1716567047025,-219.08170626,0.00026301,8]
[327870323,1716567047034,-500.0,0.00026301,8]
[327870324,1716567047043,-500.0,0.00026301,8]
[327870325,1716567047053,-500.0,0.00026301,8]
[327870326,1716567047062,-581.95,0.00026301,8]
[327870327,1716567047072,-500.0,0.00026301,8]
[327870328,1716567047081,-500.0,0.00026301,8]
[327870329,1716567047091,-863.24,0.00026301,8]
[327870330,1716567047101,-500.0,0.00026301,8]
[327870331,1716567047110,-500.0,0.00026301,8]
[327870332,1716567047119,-500.0,0.00026301,8]
[327870333,1716567047131,-553.94,0.00026301,8]
[327870334,1716567047140,-500.0,0.00026301,8]
[327870335,1716567047149,-500.0,0.00026301,8]
[327870336,1716567047158,-509.57,0.00026301,8]
[327870337,1716567047167,-823.58,0.00026301,8]
[327870338,1716567047176,-581.31727498,0.00026301,8]
[327870339,1716567047185,-500.0,0.00026301,8]
[327870340,1716567047194,-1088.57,0.00026301,8]
[327870341,1716567047204,-500.0,0.00026301,8]
[327870342,1716567047214,-500.0,0.00026301,8]
[327870343,1716567047223,-500.0,0.00026301,8]
[327870344,1716567047232,-2091.69,0.00026301,8]
[327870345,1716567047242,-440.70151592,0.00026301,8]
[327870346,1716567047251,-829.88,0.00026301,8]
[327870347,1716567047261,-752.81,0.00026301,8]
[327870348,1716567047270,-749.76,0.00026301,8]
[327870349,1716567047279,-5642.55,0.00026301,8]
[327870350,1716567047289,-679.89,0.00026301,8]
[327870351,1716567047299,-2044.84,0.00026301,8]
[327870352,1716567047308,-500.0,0.00026301,8]
[327870353,1716567047317,-500.0,0.00026301,8]
[327870354,1716567047326,-845.71,0.00026301,8]
[327870355,1716567047336,-745.53,0.00026301,8]
[327870356,1716567047345,-611.91,0.00026301,8]
[327870357,1716567047354,-1215.4,0.00026301,8]
[327870358,1716567047364,-500.0,0.00026301,8]
[327870359,1716567047374,-6209.79,0.00026301,8]
[327870360,1716567047384,-500.0,0.00026301,8]
[327870361,1716567047394,-2155.06,0.00026301,8]
[327870362,1716567047404,-7085.49,0.00026301,8]
[327870364,1716567047413,-500.0,0.00026301,8]
[327870366,1716567047423,-981.33,0.00026301,8]
[327870367,1716567047432,-500.0,0.00026301,8]
[327870368,1716567047441,-500.0,0.00026301,8]
[327870369,1716567047451,-500.0,0.00026301,8]
[327870370,1716567047465,-500.0,0.00026301,8]
[327870371,1716567047474,-774.86,0.00026301,8]
[327870372,1716567047484,-500.0,0.00026301,8]
[327870373,1716567047493,-500.0,0.00026301,8]
[327870374,1716567047503,-500.0,0.00026301,8]
[327870376,1716567047512,-500.0,0.00026301,8]
[327870378,1716567047522,-539.0,0.00026301,8]
[327870380,1716567047533,-500.0,0.00026301,8]
[327870382,1716567047542,-630.98,0.00026301,8]
[327870384,1716567047552,-500.0,0.00026301,8]
[327870386,1716567047561,-4150.53,0.00026301,8]
[327870387,1716567047570,-500.0,0.00026301,8]
[327870388,1716567047580,-419.099999,0.000264,2]
[327870389,1716567047590,-1070.15,0.00026574,3]
[327870390,1716567047600,-1070.15,0.00026574,3]
[327870391,1716567047610,-2576.19,0.00026575,9]
[327870392,1716567047619,-500.0,0.00026575,9]
[327870393,1716567047630,-500.0,0.00026575,9]
[327870395,1716567047639,-500.0,0.00026575,9]
[327870396,1716567047648,-500.0,0.00026575,9]
[327870399,1716567047660,-500.0,0.00026575,9]
[327870400,1716567047669,-500.0,0.00026575,9]
[327870401,1716567047679,-592.39,0.00026575,9]
[327870402,1716567047688,-396.70966897,0.00026575,9]
[327870403,1716567047698,-500.0,0.00026575,9]
[327870404,1716567047707,-817.63,0.00026575,9]
[327870405,1716567047717,-541.43,0.00026575,9]
[327870406,1716567047727,-500.0,0.00026575,9]
[327870407,1716567047736,-500.0,0.00026575,9]
[327870408,1716567047747,-501.54,0.00026575,9]
[327870409,1716567047756,-764.96,0.00026575,9]
[327870410,1716567047766,-500.0,0.00026575,9]
[327870411,1716567047776,-571.51,0.00026575,9]
[327870412,1716567047785,-959.3,0.00026575,9]
[327870413,1716567047795,-500.0,0.00026575,9]
[327870414,1716567047804,-760.97,0.00026575,9]
[327870415,1716567047813,-500.0,0.00026575,9]
[327870416,1716567047823,-500.0,0.00026575,9]
[327870417,1716567047832,-500.0,0.00026575,9]
[327870418,1716567047841,-581.95,0.00026575,9]
[327870419,1716567047850,-500.0,0.00026575,9]
[327870420,1716567047859,-500.0,0.00026575,9]
[327870421,1716567047869,-863.24,0.00026575,9]
[327870422,1716567047880,-500.0,0.00026575,9]
[327870423,1716567047889,-500.0,0.00026575,9]
[327870424,1716567047899,-500.0,0.00026575,9]
[327870425,1716567047908,-553.94,0.00026575,9]
[327870426,1716567047917,-500.0,0.00026575,9]
[327870427,1716567047926,-500.0,0.00026575,9]
[327870428,1716567047936,-509.57,0.00026575,9]
[327870429,1716567047945,-823.58,0.00026575,9]
[327870430,1716567047954,-500.0,0.00026575,9]
[327870431,1716567047964,-1088.57,0.00026575,9]
[327870432,1716567047974,-500.0,0.00026575,9]
[327870433,1716567047983,-500.0,0.00026575,9]
[327870434,1716567047992,-500.0,0.00026575,9]
[327870435,1716567048002,-2091.69,0.00026575,9]
[327870436,1716567048012,-829.88,0.00026575,9]
[327870437,1716567048022,-752.81,0.00026575,9]
[327870438,1716567048032,-749.76,0.00026575,9]
[327870439,1716567048042,-5642.55,0.00026575,9]
[327870440,1716567048052,-679.89,0.00026575,9]
[327870441,1716567048061,-2044.84,0.00026575,9]
[327870442,1716567048070,-500.0,0.00026575,9]
[327870443,1716567048080,-500.0,0.00026575,9]
[327870444,1716567048089,-845.71,0.00026575,9]
[327870445,1716567048098,-745.53,0.00026575,9]
[327870446,1716567048108,-611.91,0.00026575,9]
[327870447,1716567048117,-1215.4,0.00026575,9]
[327870448,1716567048128,-500.0,0.00026575,9]
[327870449,1716567048138,-6209.79,0.00026575,9]
[327870450,1716567048148,-500.0,0.00026575,9]
[327870451,1716567048158,-2155.06,0.00026575,9]
[327870452,1716567048167,-7085.49,0.00026575,9]
[327870453,1716567048177,-367.27924875,0.00026575,9]
[327870454,1716567048186,-981.33,0.00026575,9]
[327870455,1716567048196,-500.0,0.00026575,9]
[327870456,1716567048206,-500.0,0.00026575,9]
[327870457,1716567048216,-500.0,0.00026575,9]
[327870458,1716567048227,-500.0,0.00026575,9]
[327870459,1716567048237,-774.86,0.00026575,9]
[327870460,1716567048247,-500.0,0.00026575,9]
[327870461,1716567048258,-500.0,0.00026575,9]